DEPARTMENT FAMILY,ENTITY,DATE,EXPENSE TYPE,EXPENSE AREA,SUPPLIER,TRANSACTION NUMBER,AMOUNT,,
CAPITAL MEDICAL EQUIPMENT,CAPITAL MEDICAL EQUIPMENT,11/10/2021,PURCHASE OF TANGIBLE ASSET,CAPITAL,ATHRODAX H/CARE INT LTD,0000606904,"27,180.00",,
THEATRE PRACTITIONER,THEATRE PRACTITIONER,20/10/2021,SERVICES-NHS - SUB CONTR HCARE,THEATRE CRIT CARE AND ANAES,ROYAL WOLVERHAMPTON NHS TRUST,0015017158,"10,265.65",,
OPHTHALMOLOGY SLA,OPHTHALMOLOGY SLA,20/10/2021,SERVICES-NHS - SUB CONTR HCARE,HEAD AND NECK CARE GROUP,ROYAL WOLVERHAMPTON NHS TRUST,0015017158,"25,059.63",,
CATARACT SUITE,CATARACT SUITE,20/10/2021,SERVICES-NHS - SUB CONTR HCARE,THEATRE CRIT CARE AND ANAES,ROYAL WOLVERHAMPTON NHS TRUST,0015017158,"2,373.58",,
OPHTHALMOLOGY OPD,OPHTHALMOLOGY OPD,20/10/2021,SERVICES-NHS - SUB CONTR HCARE,OUTPATIENT AND SUPT SERVICES,ROYAL WOLVERHAMPTON NHS TRUST,0015017158,"12,138.76",,
OPHTHALMOLOGY JUNIOR MED,OPHTHALMOLOGY JUNIOR MED,20/10/2021,SERVICES-NHS - SUB CONTR HCARE,HEAD AND NECK CARE GROUP,ROYAL WOLVERHAMPTON NHS TRUST,0015017158,"29,143.63",,
FINANCE DEPARTMENT,FINANCE DEPARTMENT,21/10/2021,OTHER EXPENSES,FINANCE DIRECTOR,UNIVERSITY HOSPITAL BIRMINGHAM NHS FT,0015017448,"36,798.25",,
FINANCE DEPARTMENT,FINANCE DEPARTMENT,21/10/2021,OTHER EXPENSES,FINANCE DIRECTOR,UNIVERSITY HOSPITAL BIRMINGHAM NHS FT,0015017449,"36,798.25",,
FINANCE DEPARTMENT,FINANCE DEPARTMENT,27/10/2021,OTHER EXPENSES,FINANCE DIRECTOR,UNIVERSITY HOSPITAL BIRMINGHAM NHS FT,0015018246,"73,596.50",,
PALLIATIVE CARE SENIOR MEDICS,PALLIATIVE CARE SENIOR MEDICS,04/10/2021,FP10S,DIRECTOR OF NURSING,PRESCRIPTION PRICING AUTHORITY,0015019073,212.65,,
FP10 GENERAL SURGERY,FP10 GENERAL SURGERY,04/10/2021,FP10S,GENERAL SURGERY CARE GROUP,PRESCRIPTION PRICING AUTHORITY,0015019073,"12,940.96",,
MEDICAL ONCOLOGY SNR MED STAFF,MEDICAL ONCOLOGY SNR MED STAFF,04/10/2021,FP10S,CANCER SERVICES CARE GROUP,PRESCRIPTION PRICING AUTHORITY,0015019073,649.99,,
FP10 T&O,FP10 T&O,04/10/2021,FP10S,MUSCULOSKELETAL SERVICES CARE,PRESCRIPTION PRICING AUTHORITY,0015019073,734.71,,
CAPACITY CONSULTANTS,CAPACITY CONSULTANTS,04/10/2021,FP10S,EMERGENCY AND ACUTE CARE GROUP,PRESCRIPTION PRICING AUTHORITY,0015019073,134.11,,
FP10 PAIN CLINIC,FP10 PAIN CLINIC,04/10/2021,FP10S,THEATRE CRIT CARE AND ANAES,PRESCRIPTION PRICING AUTHORITY,0015019073,27.90,,
VACANT COMMUNITY CON,VACANT COMMUNITY CON,04/10/2021,FP10S,CHILDRENS AND FAMILY SERVICES,PRESCRIPTION PRICING AUTHORITY,0015019073,269.21,,
FP10  DERMATOLOGY,FP10  DERMATOLOGY,04/10/2021,FP10S,LONG TERM CONDITIONS CARE GRP,PRESCRIPTION PRICING AUTHORITY,0015019073,"8,116.93",,
FP10 ELDERLY CARE,FP10 ELDERLY CARE,04/10/2021,FP10S,ELDERLY CARE GROUP,PRESCRIPTION PRICING AUTHORITY,0015019073,437.45,,
FP10 ENT,FP10 ENT,04/10/2021,FP10S,HEAD AND NECK CARE GROUP,PRESCRIPTION PRICING AUTHORITY,0015019073,"1,227.46",,
FP10 BREAST SURGERY,FP10 BREAST SURGERY,04/10/2021,FP10S,GENERAL SURGERY CARE GROUP,PRESCRIPTION PRICING AUTHORITY,0015019073,544.04,,
FP10 COLORECTAL SURGERY,FP10 COLORECTAL SURGERY,04/10/2021,FP10S,GENERAL SURGERY CARE GROUP,PRESCRIPTION PRICING AUTHORITY,0015019073,959.46,,
FP10 UROLOGY,FP10 UROLOGY,04/10/2021,FP10S,GENERAL SURGERY CARE GROUP,PRESCRIPTION PRICING AUTHORITY,0015019073,"1,752.35",,
CLINICAL HAEM FP10,CLINICAL HAEM FP10,04/10/2021,FP10S,CLINICAL SUPPORT SERVICES,PRESCRIPTION PRICING AUTHORITY,0015019073,117.00,,
FP10 CARDIOLOGY,FP10 CARDIOLOGY,04/10/2021,FP10S,CARDIOLOGY CARE GROUP,PRESCRIPTION PRICING AUTHORITY,0015019073,"3,800.79",,
FP10 DIABETES & ENDOCRINOLOGY,FP10 DIABETES & ENDOCRINOLOGY,04/10/2021,FP10S,LONG TERM CONDITIONS CARE GRP,PRESCRIPTION PRICING AUTHORITY,0015019073,"5,371.76",,
FP10  GENERAL MEDICINE,FP10  GENERAL MEDICINE,04/10/2021,FP10S,SPECIALTY MEDICINE CARE GROUP,PRESCRIPTION PRICING AUTHORITY,0015019073,"5,648.18",,
FP10 GASTROENTEROLOGY,FP10 GASTROENTEROLOGY,04/10/2021,FP10S,GASTRO CARE GROUP,PRESCRIPTION PRICING AUTHORITY,0015019073,"1,677.93",,
FP10 RHEUMATOLOGY,FP10 RHEUMATOLOGY,04/10/2021,FP10S,MUSCULOSKELETAL SERVICES CARE,PRESCRIPTION PRICING AUTHORITY,0015019073,"2,498.04",,
FP10 NEUROLOGY,FP10 NEUROLOGY,04/10/2021,FP10S,ELDERLY CARE GROUP,PRESCRIPTION PRICING AUTHORITY,0015019073,185.47,,
OBS/GYNAE WARD DRUGS,OBS/GYNAE WARD DRUGS,04/10/2021,FP10S,WOMENS SERVICES,PRESCRIPTION PRICING AUTHORITY,0015019073,"7,263.34",,
FP10 OPHTHALMOLOGY,FP10 OPHTHALMOLOGY,04/10/2021,FP10S,HEAD AND NECK CARE GROUP,PRESCRIPTION PRICING AUTHORITY,0015019073,"1,684.59",,
FP10 ORAL SURGERY,FP10 ORAL SURGERY,04/10/2021,FP10S,HEAD AND NECK CARE GROUP,PRESCRIPTION PRICING AUTHORITY,0015019073,398.13,,
FP10 ELDERLY NEUROLOGICAL,FP10 ELDERLY NEUROLOGICAL,04/10/2021,FP10S,ELDERLY CARE GROUP,PRESCRIPTION PRICING AUTHORITY,0015019073,473.44,,
PALLIATIVE CARE SENIOR MEDICS,PALLIATIVE CARE SENIOR MEDICS,04/10/2021,FP10S,DIRECTOR OF NURSING,PRESCRIPTION PRICING AUTHORITY,0015019119,2.28,,
FP10 GENERAL SURGERY,FP10 GENERAL SURGERY,04/10/2021,FP10S,GENERAL SURGERY CARE GROUP,PRESCRIPTION PRICING AUTHORITY,0015019119,"11,149.15",,
MEDICAL ONCOLOGY SNR MED STAFF,MEDICAL ONCOLOGY SNR MED STAFF,04/10/2021,FP10S,CANCER SERVICES CARE GROUP,PRESCRIPTION PRICING AUTHORITY,0015019119,819.90,,
FP10 T&O,FP10 T&O,04/10/2021,FP10S,MUSCULOSKELETAL SERVICES CARE,PRESCRIPTION PRICING AUTHORITY,0015019119,537.93,,
CAPACITY CONSULTANTS,CAPACITY CONSULTANTS,04/10/2021,FP10S,EMERGENCY AND ACUTE CARE GROUP,PRESCRIPTION PRICING AUTHORITY,0015019119,26.73,,
FP10 PAIN CLINIC,FP10 PAIN CLINIC,04/10/2021,FP10S,THEATRE CRIT CARE AND ANAES,PRESCRIPTION PRICING AUTHORITY,0015019119,330.49,,
VACANT COMMUNITY CON,VACANT COMMUNITY CON,04/10/2021,FP10S,CHILDRENS AND FAMILY SERVICES,PRESCRIPTION PRICING AUTHORITY,0015019119,111.41,,
FP10  DERMATOLOGY,FP10  DERMATOLOGY,04/10/2021,FP10S,LONG TERM CONDITIONS CARE GRP,PRESCRIPTION PRICING AUTHORITY,0015019119,"9,939.69",,
FP10 ELDERLY CARE,FP10 ELDERLY CARE,04/10/2021,FP10S,ELDERLY CARE GROUP,PRESCRIPTION PRICING AUTHORITY,0015019119,328.94,,
FP10 ENT,FP10 ENT,04/10/2021,FP10S,HEAD AND NECK CARE GROUP,PRESCRIPTION PRICING AUTHORITY,0015019119,"1,665.87",,
FP10 BREAST SURGERY,FP10 BREAST SURGERY,04/10/2021,FP10S,GENERAL SURGERY CARE GROUP,PRESCRIPTION PRICING AUTHORITY,0015019119,559.29,,
FP10 COLORECTAL SURGERY,FP10 COLORECTAL SURGERY,04/10/2021,FP10S,GENERAL SURGERY CARE GROUP,PRESCRIPTION PRICING AUTHORITY,0015019119,"2,089.97",,
FP10 UROLOGY,FP10 UROLOGY,04/10/2021,FP10S,GENERAL SURGERY CARE GROUP,PRESCRIPTION PRICING AUTHORITY,0015019119,"1,068.54",,
CLINICAL HAEM FP10,CLINICAL HAEM FP10,04/10/2021,FP10S,CLINICAL SUPPORT SERVICES,PRESCRIPTION PRICING AUTHORITY,0015019119,766.74,,
FP10 CARDIOLOGY,FP10 CARDIOLOGY,04/10/2021,FP10S,CARDIOLOGY CARE GROUP,PRESCRIPTION PRICING AUTHORITY,0015019119,"2,220.75",,
FP10 DIABETES & ENDOCRINOLOGY,FP10 DIABETES & ENDOCRINOLOGY,04/10/2021,FP10S,LONG TERM CONDITIONS CARE GRP,PRESCRIPTION PRICING AUTHORITY,0015019119,"1,724.56",,
FP10  GENERAL MEDICINE,FP10  GENERAL MEDICINE,04/10/2021,FP10S,SPECIALTY MEDICINE CARE GROUP,PRESCRIPTION PRICING AUTHORITY,0015019119,"5,589.49",,
FP10 GASTROENTEROLOGY,FP10 GASTROENTEROLOGY,04/10/2021,FP10S,GASTRO CARE GROUP,PRESCRIPTION PRICING AUTHORITY,0015019119,"2,558.40",,
FP10 RHEUMATOLOGY,FP10 RHEUMATOLOGY,04/10/2021,FP10S,MUSCULOSKELETAL SERVICES CARE,PRESCRIPTION PRICING AUTHORITY,0015019119,"2,818.61",,
FP10 RESPIRATORY CARE,FP10 RESPIRATORY CARE,04/10/2021,FP10S,ELDERLY CARE GROUP,PRESCRIPTION PRICING AUTHORITY,0015019119,299.35,,
FP10 NEUROLOGY,FP10 NEUROLOGY,04/10/2021,FP10S,ELDERLY CARE GROUP,PRESCRIPTION PRICING AUTHORITY,0015019119,187.02,,
OBS/GYNAE WARD DRUGS,OBS/GYNAE WARD DRUGS,04/10/2021,FP10S,WOMENS SERVICES,PRESCRIPTION PRICING AUTHORITY,0015019119,"11,409.40",,
FP10 OPHTHALMOLOGY,FP10 OPHTHALMOLOGY,04/10/2021,FP10S,HEAD AND NECK CARE GROUP,PRESCRIPTION PRICING AUTHORITY,0015019119,225.23,,
FP10 ORAL SURGERY,FP10 ORAL SURGERY,04/10/2021,FP10S,HEAD AND NECK CARE GROUP,PRESCRIPTION PRICING AUTHORITY,0015019119,762.66,,
PHARMACY DEPARTMENT,PHARMACY DEPARTMENT,04/10/2021,PRESCRIPTION CHARGES,LIFESTYLES AND DISCH SUPT,PRESCRIPTION PRICING AUTHORITY,0015019119,1.11,,
PALLIATIVE CARE SENIOR MEDICS,PALLIATIVE CARE SENIOR MEDICS,04/10/2021,FP10S,DIRECTOR OF NURSING,PRESCRIPTION PRICING AUTHORITY,0015019288,73.06,,
FP10 GENERAL SURGERY,FP10 GENERAL SURGERY,04/10/2021,FP10S,GENERAL SURGERY CARE GROUP,PRESCRIPTION PRICING AUTHORITY,0015019288,"14,974.99",,
MEDICAL ONCOLOGY SNR MED STAFF,MEDICAL ONCOLOGY SNR MED STAFF,04/10/2021,FP10S,CANCER SERVICES CARE GROUP,PRESCRIPTION PRICING AUTHORITY,0015019288,889.42,,
FP10 T&O,FP10 T&O,04/10/2021,FP10S,MUSCULOSKELETAL SERVICES CARE,PRESCRIPTION PRICING AUTHORITY,0015019288,690.42,,
CAPACITY CONSULTANTS,CAPACITY CONSULTANTS,04/10/2021,FP10S,EMERGENCY AND ACUTE CARE GROUP,PRESCRIPTION PRICING AUTHORITY,0015019288,26.04,,
VACANT COMMUNITY CON,VACANT COMMUNITY CON,04/10/2021,FP10S,CHILDRENS AND FAMILY SERVICES,PRESCRIPTION PRICING AUTHORITY,0015019288,687.03,,
FP10  DERMATOLOGY,FP10  DERMATOLOGY,04/10/2021,FP10S,LONG TERM CONDITIONS CARE GRP,PRESCRIPTION PRICING AUTHORITY,0015019288,"8,497.56",,
FP10 ELDERLY CARE,FP10 ELDERLY CARE,04/10/2021,FP10S,ELDERLY CARE GROUP,PRESCRIPTION PRICING AUTHORITY,0015019288,366.30,,
FP10 ENT,FP10 ENT,04/10/2021,FP10S,HEAD AND NECK CARE GROUP,PRESCRIPTION PRICING AUTHORITY,0015019288,"1,822.25",,
FP10 BREAST SURGERY,FP10 BREAST SURGERY,04/10/2021,FP10S,GENERAL SURGERY CARE GROUP,PRESCRIPTION PRICING AUTHORITY,0015019288,358.16,,
FP10 COLORECTAL SURGERY,FP10 COLORECTAL SURGERY,04/10/2021,FP10S,GENERAL SURGERY CARE GROUP,PRESCRIPTION PRICING AUTHORITY,0015019288,759.90,,
FP10 UROLOGY,FP10 UROLOGY,04/10/2021,FP10S,GENERAL SURGERY CARE GROUP,PRESCRIPTION PRICING AUTHORITY,0015019288,"2,156.81",,
CLINICAL HAEM FP10,CLINICAL HAEM FP10,04/10/2021,FP10S,CLINICAL SUPPORT SERVICES,PRESCRIPTION PRICING AUTHORITY,0015019288,90.77,,
FP10 CARDIOLOGY,FP10 CARDIOLOGY,04/10/2021,FP10S,CARDIOLOGY CARE GROUP,PRESCRIPTION PRICING AUTHORITY,0015019288,"2,270.71",,
FP10 DIABETES & ENDOCRINOLOGY,FP10 DIABETES & ENDOCRINOLOGY,04/10/2021,FP10S,LONG TERM CONDITIONS CARE GRP,PRESCRIPTION PRICING AUTHORITY,0015019288,"3,907.83",,
FP10  GENERAL MEDICINE,FP10  GENERAL MEDICINE,04/10/2021,FP10S,SPECIALTY MEDICINE CARE GROUP,PRESCRIPTION PRICING AUTHORITY,0015019288,"2,486.82",,
FP10 GASTROENTEROLOGY,FP10 GASTROENTEROLOGY,04/10/2021,FP10S,GASTRO CARE GROUP,PRESCRIPTION PRICING AUTHORITY,0015019288,"2,620.49",,
FP10 RHEUMATOLOGY,FP10 RHEUMATOLOGY,04/10/2021,FP10S,MUSCULOSKELETAL SERVICES CARE,PRESCRIPTION PRICING AUTHORITY,0015019288,"3,390.34",,
FP10 RESPIRATORY CARE,FP10 RESPIRATORY CARE,04/10/2021,FP10S,ELDERLY CARE GROUP,PRESCRIPTION PRICING AUTHORITY,0015019288,88.62,,
FP10 NEUROLOGY,FP10 NEUROLOGY,04/10/2021,FP10S,ELDERLY CARE GROUP,PRESCRIPTION PRICING AUTHORITY,0015019288,363.07,,
OBS/GYNAE WARD DRUGS,OBS/GYNAE WARD DRUGS,04/10/2021,FP10S,WOMENS SERVICES,PRESCRIPTION PRICING AUTHORITY,0015019288,"8,280.81",,
FP10 OPHTHALMOLOGY,FP10 OPHTHALMOLOGY,04/10/2021,FP10S,HEAD AND NECK CARE GROUP,PRESCRIPTION PRICING AUTHORITY,0015019288,"1,248.08",,
FP10 ORAL SURGERY,FP10 ORAL SURGERY,04/10/2021,FP10S,HEAD AND NECK CARE GROUP,PRESCRIPTION PRICING AUTHORITY,0015019288,828.10,,
FP10 ELDERLY NEUROLOGICAL,FP10 ELDERLY NEUROLOGICAL,04/10/2021,FP10S,ELDERLY CARE GROUP,PRESCRIPTION PRICING AUTHORITY,0015019288,55.68,,
FP10 ELDERLY CARE STROKE CLIN,FP10 ELDERLY CARE STROKE CLIN,04/10/2021,FP10S,ELDERLY CARE GROUP,PRESCRIPTION PRICING AUTHORITY,0015019288,8.91,,
FINANCE DEPARTMENT,FINANCE DEPARTMENT,04/10/2021,OTHER EXPENSES,FINANCE DIRECTOR,UNIVERSITY HOSPITAL BIRMINGHAM NHS FT,0015019299,"126,095.00",,
WALSALL TOGETHER,WALSALL TOGETHER,20/10/2021,REFERRED TESTS RECHARGES,WALSALL TOGETHER,BLACK COUNTRY & WEST BIRMINGHAM CCG,0015019402,"48,381.64",,
PALLIATIVE CARE SENIOR MEDICS,PALLIATIVE CARE SENIOR MEDICS,20/10/2021,FP10S,DIRECTOR OF NURSING,PRESCRIPTION PRICING AUTHORITY,0015019471,470.47,,
FP10 GENERAL SURGERY,FP10 GENERAL SURGERY,20/10/2021,FP10S,GENERAL SURGERY CARE GROUP,PRESCRIPTION PRICING AUTHORITY,0015019471,"16,336.85",,
MEDICAL ONCOLOGY SNR MED STAFF,MEDICAL ONCOLOGY SNR MED STAFF,20/10/2021,FP10S,CANCER SERVICES CARE GROUP,PRESCRIPTION PRICING AUTHORITY,0015019471,"1,240.47",,
FP10 T&O,FP10 T&O,20/10/2021,FP10S,MUSCULOSKELETAL SERVICES CARE,PRESCRIPTION PRICING AUTHORITY,0015019471,"1,171.34",,
CAPACITY CONSULTANTS,CAPACITY CONSULTANTS,20/10/2021,FP10S,EMERGENCY AND ACUTE CARE GROUP,PRESCRIPTION PRICING AUTHORITY,0015019471,5.57,,
FP10 PAIN CLINIC,FP10 PAIN CLINIC,20/10/2021,FP10S,THEATRE CRIT CARE AND ANAES,PRESCRIPTION PRICING AUTHORITY,0015019471,5.43,,
VACANT COMMUNITY CON,VACANT COMMUNITY CON,20/10/2021,FP10S,CHILDRENS AND FAMILY SERVICES,PRESCRIPTION PRICING AUTHORITY,0015019471,468.78,,
FP10  DERMATOLOGY,FP10  DERMATOLOGY,20/10/2021,FP10S,LONG TERM CONDITIONS CARE GRP,PRESCRIPTION PRICING AUTHORITY,0015019471,"6,969.21",,
FP10 ELDERLY CARE,FP10 ELDERLY CARE,20/10/2021,FP10S,ELDERLY CARE GROUP,PRESCRIPTION PRICING AUTHORITY,0015019471,"2,454.85",,
FP10 ENT,FP10 ENT,20/10/2021,FP10S,HEAD AND NECK CARE GROUP,PRESCRIPTION PRICING AUTHORITY,0015019471,"2,966.85",,
FP10 BREAST SURGERY,FP10 BREAST SURGERY,20/10/2021,FP10S,GENERAL SURGERY CARE GROUP,PRESCRIPTION PRICING AUTHORITY,0015019471,226.09,,
FP10 COLORECTAL SURGERY,FP10 COLORECTAL SURGERY,20/10/2021,FP10S,GENERAL SURGERY CARE GROUP,PRESCRIPTION PRICING AUTHORITY,0015019471,978.82,,
FP10 UROLOGY,FP10 UROLOGY,20/10/2021,FP10S,GENERAL SURGERY CARE GROUP,PRESCRIPTION PRICING AUTHORITY,0015019471,"2,825.25",,
CLINICAL HAEM FP10,CLINICAL HAEM FP10,20/10/2021,FP10S,CLINICAL SUPPORT SERVICES,PRESCRIPTION PRICING AUTHORITY,0015019471,260.39,,
FP10 CARDIOLOGY,FP10 CARDIOLOGY,20/10/2021,FP10S,CARDIOLOGY CARE GROUP,PRESCRIPTION PRICING AUTHORITY,0015019471,"3,046.13",,
FP10 DIABETES & ENDOCRINOLOGY,FP10 DIABETES & ENDOCRINOLOGY,20/10/2021,FP10S,LONG TERM CONDITIONS CARE GRP,PRESCRIPTION PRICING AUTHORITY,0015019471,"5,380.77",,
FP10  GENERAL MEDICINE,FP10  GENERAL MEDICINE,20/10/2021,FP10S,SPECIALTY MEDICINE CARE GROUP,PRESCRIPTION PRICING AUTHORITY,0015019471,"1,935.85",,
FP10 GASTROENTEROLOGY,FP10 GASTROENTEROLOGY,20/10/2021,FP10S,GASTRO CARE GROUP,PRESCRIPTION PRICING AUTHORITY,0015019471,"1,458.12",,
FP10 RHEUMATOLOGY,FP10 RHEUMATOLOGY,20/10/2021,FP10S,MUSCULOSKELETAL SERVICES CARE,PRESCRIPTION PRICING AUTHORITY,0015019471,"1,840.38",,
FP10 RESPIRATORY CARE,FP10 RESPIRATORY CARE,20/10/2021,FP10S,ELDERLY CARE GROUP,PRESCRIPTION PRICING AUTHORITY,0015019471,106.85,,
FP10 NEUROLOGY,FP10 NEUROLOGY,20/10/2021,FP10S,ELDERLY CARE GROUP,PRESCRIPTION PRICING AUTHORITY,0015019471,443.09,,
OBS/GYNAE WARD DRUGS,OBS/GYNAE WARD DRUGS,20/10/2021,FP10S,WOMENS SERVICES,PRESCRIPTION PRICING AUTHORITY,0015019471,"8,295.25",,
FP10 OPHTHALMOLOGY,FP10 OPHTHALMOLOGY,20/10/2021,FP10S,HEAD AND NECK CARE GROUP,PRESCRIPTION PRICING AUTHORITY,0015019471,304.02,,
FP10 ORAL SURGERY,FP10 ORAL SURGERY,20/10/2021,FP10S,HEAD AND NECK CARE GROUP,PRESCRIPTION PRICING AUTHORITY,0015019471,871.75,,
FP10 ELDERLY NEUROLOGICAL,FP10 ELDERLY NEUROLOGICAL,20/10/2021,FP10S,ELDERLY CARE GROUP,PRESCRIPTION PRICING AUTHORITY,0015019471,98.98,,
PALLIATIVE CARE SENIOR MEDICS,PALLIATIVE CARE SENIOR MEDICS,20/10/2021,FP10S,DIRECTOR OF NURSING,PRESCRIPTION PRICING AUTHORITY,0015019525,82.42,,
FP10 GENERAL SURGERY,FP10 GENERAL SURGERY,20/10/2021,FP10S,GENERAL SURGERY CARE GROUP,PRESCRIPTION PRICING AUTHORITY,0015019525,"20,054.69",,
MEDICAL ONCOLOGY SNR MED STAFF,MEDICAL ONCOLOGY SNR MED STAFF,20/10/2021,FP10S,CANCER SERVICES CARE GROUP,PRESCRIPTION PRICING AUTHORITY,0015019525,"1,089.74",,
FP10 T&O,FP10 T&O,20/10/2021,FP10S,MUSCULOSKELETAL SERVICES CARE,PRESCRIPTION PRICING AUTHORITY,0015019525,"1,626.20",,
CAPACITY CONSULTANTS,CAPACITY CONSULTANTS,20/10/2021,FP10S,EMERGENCY AND ACUTE CARE GROUP,PRESCRIPTION PRICING AUTHORITY,0015019525,2.23,,
FP10 PAIN CLINIC,FP10 PAIN CLINIC,20/10/2021,FP10S,THEATRE CRIT CARE AND ANAES,PRESCRIPTION PRICING AUTHORITY,0015019525,50.86,,
VACANT COMMUNITY CON,VACANT COMMUNITY CON,20/10/2021,FP10S,CHILDRENS AND FAMILY SERVICES,PRESCRIPTION PRICING AUTHORITY,0015019525,106.84,,
FP10  DERMATOLOGY,FP10  DERMATOLOGY,20/10/2021,FP10S,LONG TERM CONDITIONS CARE GRP,PRESCRIPTION PRICING AUTHORITY,0015019525,"5,431.46",,
FP10 ELDERLY CARE,FP10 ELDERLY CARE,20/10/2021,FP10S,ELDERLY CARE GROUP,PRESCRIPTION PRICING AUTHORITY,0015019525,"2,185.83",,
FP10 ENT,FP10 ENT,20/10/2021,FP10S,HEAD AND NECK CARE GROUP,PRESCRIPTION PRICING AUTHORITY,0015019525,"2,462.88",,
FP10 BREAST SURGERY,FP10 BREAST SURGERY,20/10/2021,FP10S,GENERAL SURGERY CARE GROUP,PRESCRIPTION PRICING AUTHORITY,0015019525,184.19,,
FP10 COLORECTAL SURGERY,FP10 COLORECTAL SURGERY,20/10/2021,FP10S,GENERAL SURGERY CARE GROUP,PRESCRIPTION PRICING AUTHORITY,0015019525,"1,021.17",,
FP10 UROLOGY,FP10 UROLOGY,20/10/2021,FP10S,GENERAL SURGERY CARE GROUP,PRESCRIPTION PRICING AUTHORITY,0015019525,"2,365.66",,
CLINICAL HAEM FP10,CLINICAL HAEM FP10,20/10/2021,FP10S,CLINICAL SUPPORT SERVICES,PRESCRIPTION PRICING AUTHORITY,0015019525,143.44,,
FP10 CARDIOLOGY,FP10 CARDIOLOGY,20/10/2021,FP10S,CARDIOLOGY CARE GROUP,PRESCRIPTION PRICING AUTHORITY,0015019525,"2,320.95",,
FP10 DIABETES & ENDOCRINOLOGY,FP10 DIABETES & ENDOCRINOLOGY,20/10/2021,FP10S,LONG TERM CONDITIONS CARE GRP,PRESCRIPTION PRICING AUTHORITY,0015019525,"6,103.62",,
FP10  GENERAL MEDICINE,FP10  GENERAL MEDICINE,20/10/2021,FP10S,SPECIALTY MEDICINE CARE GROUP,PRESCRIPTION PRICING AUTHORITY,0015019525,"2,531.83",,
FP10 GASTROENTEROLOGY,FP10 GASTROENTEROLOGY,20/10/2021,FP10S,GASTRO CARE GROUP,PRESCRIPTION PRICING AUTHORITY,0015019525,277.29,,
FP10 RHEUMATOLOGY,FP10 RHEUMATOLOGY,20/10/2021,FP10S,MUSCULOSKELETAL SERVICES CARE,PRESCRIPTION PRICING AUTHORITY,0015019525,"3,236.24",,
FP10 RESPIRATORY CARE,FP10 RESPIRATORY CARE,20/10/2021,FP10S,ELDERLY CARE GROUP,PRESCRIPTION PRICING AUTHORITY,0015019525,631.18,,
FP10 NEUROLOGY,FP10 NEUROLOGY,20/10/2021,FP10S,ELDERLY CARE GROUP,PRESCRIPTION PRICING AUTHORITY,0015019525,497.06,,
OBS/GYNAE WARD DRUGS,OBS/GYNAE WARD DRUGS,20/10/2021,FP10S,WOMENS SERVICES,PRESCRIPTION PRICING AUTHORITY,0015019525,"6,188.31",,
FP10 OPHTHALMOLOGY,FP10 OPHTHALMOLOGY,20/10/2021,FP10S,HEAD AND NECK CARE GROUP,PRESCRIPTION PRICING AUTHORITY,0015019525,256.89,,
FP10 ORAL SURGERY,FP10 ORAL SURGERY,20/10/2021,FP10S,HEAD AND NECK CARE GROUP,PRESCRIPTION PRICING AUTHORITY,0015019525,514.66,,
FP10 ELDERLY NEUROLOGICAL,FP10 ELDERLY NEUROLOGICAL,20/10/2021,FP10S,ELDERLY CARE GROUP,PRESCRIPTION PRICING AUTHORITY,0015019525,60.15,,
PALLIATIVE CARE SENIOR MEDICS,PALLIATIVE CARE SENIOR MEDICS,20/10/2021,FP10S,DIRECTOR OF NURSING,PRESCRIPTION PRICING AUTHORITY,0015019580,253.32,,
FP10 GENERAL SURGERY,FP10 GENERAL SURGERY,20/10/2021,FP10S,GENERAL SURGERY CARE GROUP,PRESCRIPTION PRICING AUTHORITY,0015019580,"30,269.33",,
MEDICAL ONCOLOGY SNR MED STAFF,MEDICAL ONCOLOGY SNR MED STAFF,20/10/2021,FP10S,CANCER SERVICES CARE GROUP,PRESCRIPTION PRICING AUTHORITY,0015019580,897.19,,
FP10 T&O,FP10 T&O,20/10/2021,FP10S,MUSCULOSKELETAL SERVICES CARE,PRESCRIPTION PRICING AUTHORITY,0015019580,911.27,,
CAPACITY CONSULTANTS,CAPACITY CONSULTANTS,20/10/2021,FP10S,EMERGENCY AND ACUTE CARE GROUP,PRESCRIPTION PRICING AUTHORITY,0015019580,54.78,,
FP10 PAIN CLINIC,FP10 PAIN CLINIC,20/10/2021,FP10S,THEATRE CRIT CARE AND ANAES,PRESCRIPTION PRICING AUTHORITY,0015019580,11.71,,
VACANT COMMUNITY CON,VACANT COMMUNITY CON,20/10/2021,FP10S,CHILDRENS AND FAMILY SERVICES,PRESCRIPTION PRICING AUTHORITY,0015019580,131.06,,
FP10  DERMATOLOGY,FP10  DERMATOLOGY,20/10/2021,FP10S,LONG TERM CONDITIONS CARE GRP,PRESCRIPTION PRICING AUTHORITY,0015019580,"5,131.92",,
FP10 ELDERLY CARE,FP10 ELDERLY CARE,20/10/2021,FP10S,ELDERLY CARE GROUP,PRESCRIPTION PRICING AUTHORITY,0015019580,270.27,,
FP10 ENT,FP10 ENT,20/10/2021,FP10S,HEAD AND NECK CARE GROUP,PRESCRIPTION PRICING AUTHORITY,0015019580,"2,176.19",,
FP10 BREAST SURGERY,FP10 BREAST SURGERY,20/10/2021,FP10S,GENERAL SURGERY CARE GROUP,PRESCRIPTION PRICING AUTHORITY,0015019580,211.07,,
FP10 COLORECTAL SURGERY,FP10 COLORECTAL SURGERY,20/10/2021,FP10S,GENERAL SURGERY CARE GROUP,PRESCRIPTION PRICING AUTHORITY,0015019580,"1,227.06",,
FP10 UROLOGY,FP10 UROLOGY,20/10/2021,FP10S,GENERAL SURGERY CARE GROUP,PRESCRIPTION PRICING AUTHORITY,0015019580,"3,519.81",,
CLINICAL HAEM FP10,CLINICAL HAEM FP10,20/10/2021,FP10S,CLINICAL SUPPORT SERVICES,PRESCRIPTION PRICING AUTHORITY,0015019580,201.90,,
FP10 CARDIOLOGY,FP10 CARDIOLOGY,20/10/2021,FP10S,CARDIOLOGY CARE GROUP,PRESCRIPTION PRICING AUTHORITY,0015019580,"4,043.89",,
FP10 DIABETES & ENDOCRINOLOGY,FP10 DIABETES & ENDOCRINOLOGY,20/10/2021,FP10S,LONG TERM CONDITIONS CARE GRP,PRESCRIPTION PRICING AUTHORITY,0015019580,"2,359.31",,
FP10  GENERAL MEDICINE,FP10  GENERAL MEDICINE,20/10/2021,FP10S,SPECIALTY MEDICINE CARE GROUP,PRESCRIPTION PRICING AUTHORITY,0015019580,"2,435.09",,
FP10 GASTROENTEROLOGY,FP10 GASTROENTEROLOGY,20/10/2021,FP10S,GASTRO CARE GROUP,PRESCRIPTION PRICING AUTHORITY,0015019580,"1,041.53",,
FP10 RHEUMATOLOGY,FP10 RHEUMATOLOGY,20/10/2021,FP10S,MUSCULOSKELETAL SERVICES CARE,PRESCRIPTION PRICING AUTHORITY,0015019580,"2,514.33",,
FP10 RESPIRATORY CARE,FP10 RESPIRATORY CARE,20/10/2021,FP10S,ELDERLY CARE GROUP,PRESCRIPTION PRICING AUTHORITY,0015019580,44.99,,
FP10 NEUROLOGY,FP10 NEUROLOGY,20/10/2021,FP10S,ELDERLY CARE GROUP,PRESCRIPTION PRICING AUTHORITY,0015019580,308.96,,
OBS/GYNAE WARD DRUGS,OBS/GYNAE WARD DRUGS,20/10/2021,FP10S,WOMENS SERVICES,PRESCRIPTION PRICING AUTHORITY,0015019580,"4,973.11",,
FP10 OPHTHALMOLOGY,FP10 OPHTHALMOLOGY,20/10/2021,FP10S,HEAD AND NECK CARE GROUP,PRESCRIPTION PRICING AUTHORITY,0015019580,"1,427.39",,
FP10 ORAL SURGERY,FP10 ORAL SURGERY,20/10/2021,FP10S,HEAD AND NECK CARE GROUP,PRESCRIPTION PRICING AUTHORITY,0015019580,428.58,,
FP10 ELDERLY NEUROLOGICAL,FP10 ELDERLY NEUROLOGICAL,20/10/2021,FP10S,ELDERLY CARE GROUP,PRESCRIPTION PRICING AUTHORITY,0015019580,51.30,,
PALLIATIVE CARE SENIOR MEDICS,PALLIATIVE CARE SENIOR MEDICS,20/10/2021,FP10S,DIRECTOR OF NURSING,PRESCRIPTION PRICING AUTHORITY,0015019722,247.88,,
FP10 GENERAL SURGERY,FP10 GENERAL SURGERY,20/10/2021,FP10S,GENERAL SURGERY CARE GROUP,PRESCRIPTION PRICING AUTHORITY,0015019722,"20,930.80",,
MEDICAL ONCOLOGY SNR MED STAFF,MEDICAL ONCOLOGY SNR MED STAFF,20/10/2021,FP10S,CANCER SERVICES CARE GROUP,PRESCRIPTION PRICING AUTHORITY,0015019722,"1,266.02",,
FP10 T&O,FP10 T&O,20/10/2021,FP10S,MUSCULOSKELETAL SERVICES CARE,PRESCRIPTION PRICING AUTHORITY,0015019722,"1,184.75",,
CAPACITY CONSULTANTS,CAPACITY CONSULTANTS,20/10/2021,FP10S,EMERGENCY AND ACUTE CARE GROUP,PRESCRIPTION PRICING AUTHORITY,0015019722,1.90,,
FP10 PAIN CLINIC,FP10 PAIN CLINIC,20/10/2021,FP10S,THEATRE CRIT CARE AND ANAES,PRESCRIPTION PRICING AUTHORITY,0015019722,20.59,,
VACANT COMMUNITY CON,VACANT COMMUNITY CON,20/10/2021,FP10S,CHILDRENS AND FAMILY SERVICES,PRESCRIPTION PRICING AUTHORITY,0015019722,26.72,,
FP10  DERMATOLOGY,FP10  DERMATOLOGY,20/10/2021,FP10S,LONG TERM CONDITIONS CARE GRP,PRESCRIPTION PRICING AUTHORITY,0015019722,"6,261.20",,
FP10 ELDERLY CARE,FP10 ELDERLY CARE,20/10/2021,FP10S,ELDERLY CARE GROUP,PRESCRIPTION PRICING AUTHORITY,0015019722,50.09,,
FP10 ENT,FP10 ENT,20/10/2021,FP10S,HEAD AND NECK CARE GROUP,PRESCRIPTION PRICING AUTHORITY,0015019722,"1,893.69",,
FP10 BREAST SURGERY,FP10 BREAST SURGERY,20/10/2021,FP10S,GENERAL SURGERY CARE GROUP,PRESCRIPTION PRICING AUTHORITY,0015019722,297.22,,
FP10 COLORECTAL SURGERY,FP10 COLORECTAL SURGERY,20/10/2021,FP10S,GENERAL SURGERY CARE GROUP,PRESCRIPTION PRICING AUTHORITY,0015019722,"1,055.95",,
FP10 UROLOGY,FP10 UROLOGY,20/10/2021,FP10S,GENERAL SURGERY CARE GROUP,PRESCRIPTION PRICING AUTHORITY,0015019722,"2,368.51",,
CLINICAL HAEM FP10,CLINICAL HAEM FP10,20/10/2021,FP10S,CLINICAL SUPPORT SERVICES,PRESCRIPTION PRICING AUTHORITY,0015019722,127.04,,
FP10 CARDIOLOGY,FP10 CARDIOLOGY,20/10/2021,FP10S,CARDIOLOGY CARE GROUP,PRESCRIPTION PRICING AUTHORITY,0015019722,"2,920.68",,
FP10 DIABETES & ENDOCRINOLOGY,FP10 DIABETES & ENDOCRINOLOGY,20/10/2021,FP10S,LONG TERM CONDITIONS CARE GRP,PRESCRIPTION PRICING AUTHORITY,0015019722,"10,748.92",,
FP10  GENERAL MEDICINE,FP10  GENERAL MEDICINE,20/10/2021,FP10S,SPECIALTY MEDICINE CARE GROUP,PRESCRIPTION PRICING AUTHORITY,0015019722,"2,571.26",,
FP10 GASTROENTEROLOGY,FP10 GASTROENTEROLOGY,20/10/2021,FP10S,GASTRO CARE GROUP,PRESCRIPTION PRICING AUTHORITY,0015019722,538.58,,
FP10 RHEUMATOLOGY,FP10 RHEUMATOLOGY,20/10/2021,FP10S,MUSCULOSKELETAL SERVICES CARE,PRESCRIPTION PRICING AUTHORITY,0015019722,"3,516.00",,
FP10 RESPIRATORY CARE,FP10 RESPIRATORY CARE,20/10/2021,FP10S,ELDERLY CARE GROUP,PRESCRIPTION PRICING AUTHORITY,0015019722,535.87,,
FP10 NEUROLOGY,FP10 NEUROLOGY,20/10/2021,FP10S,ELDERLY CARE GROUP,PRESCRIPTION PRICING AUTHORITY,0015019722,143.66,,
OBS/GYNAE WARD DRUGS,OBS/GYNAE WARD DRUGS,20/10/2021,FP10S,WOMENS SERVICES,PRESCRIPTION PRICING AUTHORITY,0015019722,"7,668.62",,
FP10 OPHTHALMOLOGY,FP10 OPHTHALMOLOGY,20/10/2021,FP10S,HEAD AND NECK CARE GROUP,PRESCRIPTION PRICING AUTHORITY,0015019722,"1,667.55",,
FP10 ORAL SURGERY,FP10 ORAL SURGERY,20/10/2021,FP10S,HEAD AND NECK CARE GROUP,PRESCRIPTION PRICING AUTHORITY,0015019722,"1,147.27",,
FP10 ELDERLY NEUROLOGICAL,FP10 ELDERLY NEUROLOGICAL,20/10/2021,FP10S,ELDERLY CARE GROUP,PRESCRIPTION PRICING AUTHORITY,0015019722,6.00,,
OTHER CCG,OTHER CCG,11/10/2021,REFERRED TESTS RECHARGES,BLOCK INCOME,SANDWELL AND WEST BIRMINGHAM HOSP TRST,0015019780,"8,697.25",,
RHEUMATOLOGY SLA,RHEUMATOLOGY SLA,11/10/2021,REFERRED TESTS RECHARGES,LONG TERM CONDITIONS CARE GRP,SANDWELL AND WEST BIRMINGHAM HOSP TRST,0015019780,"79,573.50",,
PLASTIC SURGERY,PLASTIC SURGERY,11/10/2021,REFERRED TESTS RECHARGES,GENERAL SURGERY CARE GROUP,SANDWELL AND WEST BIRMINGHAM HOSP TRST,0015019780,"12,120.00",,
BLOOD SCIENCES,BLOOD SCIENCES,11/10/2021,REFERRED TESTS RECHARGES,CLINICAL SUPPORT SERVICES,SANDWELL AND WEST BIRMINGHAM HOSP TRST,0015019780,"12,259.00",,
PROCUREMENT,PROCUREMENT,11/10/2021,SENIOR MANAGERS-PB8C,FINANCE DIRECTOR,SANDWELL AND WEST BIRMINGHAM HOSP TRST,0015019780,"20,072.00",,
NEUROPHYSIOLOGY SNR MED,NEUROPHYSIOLOGY SNR MED,11/10/2021,REFERRED TESTS RECHARGES,ELDERLY CARE GROUP,SANDWELL AND WEST BIRMINGHAM HOSP TRST,0015019780,"22,879.25",,
GYNAE - ONCOL SLA,GYNAE - ONCOL SLA,11/10/2021,CONSULTANTS,WOMENS SERVICES,SANDWELL AND WEST BIRMINGHAM HOSP TRST,0015019780,"10,606.50",,
BREAST SYMPTOMATIC SERVICE,BREAST SYMPTOMATIC SERVICE,11/10/2021,SERVICES FROM OTHER NHS BODIES,CLINICAL SUPPORT SERVICES,SANDWELL AND WEST BIRMINGHAM HOSP TRST,0015019780,"91,856.50",,
BREAST SYMPTOMATIC SERVICE,BREAST SYMPTOMATIC SERVICE,11/10/2021,SERVICES FROM OTHER NHS TRUSTS,CLINICAL SUPPORT SERVICES,SANDWELL AND WEST BIRMINGHAM HOSP TRST,0015019780,"14,709.50",,
BLACK COUNTRY ALLIANCE,BLACK COUNTRY ALLIANCE,11/10/2021,SERVICES-NHS BODIES-NON-HCARE,CHIEF EXECUTIVE,SANDWELL AND WEST BIRMINGHAM HOSP TRST,0015019780,"27,392.00",,
GASTROENTERLOGY SNR MED STAFF,GASTROENTERLOGY SNR MED STAFF,11/10/2021,REFERRED TESTS RECHARGES,GASTRO CARE GROUP,SANDWELL AND WEST BIRMINGHAM HOSP TRST,0015019780,"1,302.50",,
OTHER CCG,OTHER CCG,11/10/2021,REFERRED TESTS RECHARGES,BLOCK INCOME,SANDWELL AND WEST BIRMINGHAM HOSP TRST,0015019782,"8,697.25",,
RHEUMATOLOGY SLA,RHEUMATOLOGY SLA,11/10/2021,REFERRED TESTS RECHARGES,LONG TERM CONDITIONS CARE GRP,SANDWELL AND WEST BIRMINGHAM HOSP TRST,0015019782,"79,573.50",,
PLASTIC SURGERY,PLASTIC SURGERY,11/10/2021,REFERRED TESTS RECHARGES,GENERAL SURGERY CARE GROUP,SANDWELL AND WEST BIRMINGHAM HOSP TRST,0015019782,"12,120.00",,
BLOOD SCIENCES,BLOOD SCIENCES,11/10/2021,REFERRED TESTS RECHARGES,CLINICAL SUPPORT SERVICES,SANDWELL AND WEST BIRMINGHAM HOSP TRST,0015019782,"12,259.00",,
PROCUREMENT,PROCUREMENT,11/10/2021,SENIOR MANAGERS-PB8C,FINANCE DIRECTOR,SANDWELL AND WEST BIRMINGHAM HOSP TRST,0015019782,"20,072.00",,
NEUROPHYSIOLOGY SNR MED,NEUROPHYSIOLOGY SNR MED,11/10/2021,REFERRED TESTS RECHARGES,ELDERLY CARE GROUP,SANDWELL AND WEST BIRMINGHAM HOSP TRST,0015019782,"22,879.25",,
GYNAE - ONCOL SLA,GYNAE - ONCOL SLA,11/10/2021,CONSULTANTS,WOMENS SERVICES,SANDWELL AND WEST BIRMINGHAM HOSP TRST,0015019782,"10,606.50",,
BREAST SYMPTOMATIC SERVICE,BREAST SYMPTOMATIC SERVICE,11/10/2021,SERVICES FROM OTHER NHS BODIES,CLINICAL SUPPORT SERVICES,SANDWELL AND WEST BIRMINGHAM HOSP TRST,0015019782,"91,856.50",,
BREAST SYMPTOMATIC SERVICE,BREAST SYMPTOMATIC SERVICE,11/10/2021,SERVICES FROM OTHER NHS TRUSTS,CLINICAL SUPPORT SERVICES,SANDWELL AND WEST BIRMINGHAM HOSP TRST,0015019782,"14,709.50",,
BLACK COUNTRY ALLIANCE,BLACK COUNTRY ALLIANCE,11/10/2021,SERVICES-NHS BODIES-NON-HCARE,CHIEF EXECUTIVE,SANDWELL AND WEST BIRMINGHAM HOSP TRST,0015019782,"27,392.00",,
GASTROENTERLOGY SNR MED STAFF,GASTROENTERLOGY SNR MED STAFF,11/10/2021,REFERRED TESTS RECHARGES,GASTRO CARE GROUP,SANDWELL AND WEST BIRMINGHAM HOSP TRST,0015019782,"1,302.50",,
IMAGING DEPARTMENT,IMAGING DEPARTMENT,04/10/2021,SERVICES-NHS BODIES-NON-HCARE,CLINICAL SUPPORT SERVICES,ROYAL WOLVERHAMPTON NHS TRUST,0015019797,"22,984.22",,
OTHER CCG,OTHER CCG,04/10/2021,REFERRED TESTS RECHARGES,BLOCK INCOME,ROYAL WOLVERHAMPTON NHS TRUST,0015019797,"251,161.18",,
FINANCE DEPARTMENT,FINANCE DEPARTMENT,04/10/2021,OTHER EXPENSES,FINANCE DIRECTOR,ROYAL WOLVERHAMPTON NHS TRUST,0015019797,"844,871.92",,
FINANCE PAYMASTER SERVICES,FINANCE PAYMASTER SERVICES,04/10/2021,SERVICES FROM OTHER NHS BODIES,FINANCE DIRECTOR,ROYAL WOLVERHAMPTON NHS TRUST,0015019797,"133,198.55",,
STAFF EXP AND WF PROJECTS,STAFF EXP AND WF PROJECTS,04/10/2021,SERVICES FROM OTHER NHS BODIES,HR & TRAINING,ROYAL WOLVERHAMPTON NHS TRUST,0015019797,"6,760.16",,
PATHOLOGY SERVICES,PATHOLOGY SERVICES,04/10/2021,SERVICES-NHS BODIES-NON-HCARE,CLINICAL SUPPORT SERVICES,ROYAL WOLVERHAMPTON NHS TRUST,0015019797,"8,627.32",,
NEPHROLOGY RECHARGE,NEPHROLOGY RECHARGE,04/10/2021,REFERRED TESTS RECHARGES,LONG TERM CONDITIONS CARE GRP,ROYAL WOLVERHAMPTON NHS TRUST,0015019797,"29,848.90",,
AG HAEMATOLOGY SENIORS,AG HAEMATOLOGY SENIORS,04/10/2021,LOCUM OTHER CAREER GRADES,CLINICAL SUPPORT SERVICES,ROYAL WOLVERHAMPTON NHS TRUST,0015019797,"10,330.75",,
OTHER CCG,OTHER CCG,07/10/2021,REFERRED TESTS RECHARGES,BLOCK INCOME,THE DUDLEY GRP HOSP NHS TRUST,0015019826,"6,173.53",,
FINANCE DEPARTMENT,FINANCE DEPARTMENT,07/10/2021,OTHER EXPENSES,FINANCE DIRECTOR,THE DUDLEY GRP HOSP NHS TRUST,0015019826,"10,154.66",,
FINANCE PAYMASTER SERVICES,FINANCE PAYMASTER SERVICES,07/10/2021,SERVICES FROM OTHER NHS BODIES,FINANCE DIRECTOR,THE DUDLEY GRP HOSP NHS TRUST,0015019826,"18,171.50",,
STAFF EXP AND WF PROJECTS,STAFF EXP AND WF PROJECTS,07/10/2021,SERVICES FROM OTHER NHS BODIES,HR & TRAINING,THE DUDLEY GRP HOSP NHS TRUST,0015019826,"3,527.05",,
PATHOLOGY SERVICES,PATHOLOGY SERVICES,07/10/2021,SERVICES-NHS BODIES-NON-HCARE,CLINICAL SUPPORT SERVICES,THE DUDLEY GRP HOSP NHS TRUST,0015019826,"138,440.76",,
FINANCE DEPARTMENT,FINANCE DEPARTMENT,07/10/2021,OTHER EXPENSES,FINANCE DIRECTOR,ROYAL WOLVERHAMPTON NHS TRUST,0015019838,"-539,846.00",,
PALLIATIVE CARE SENIOR MEDICS,PALLIATIVE CARE SENIOR MEDICS,07/10/2021,FP10S,DIRECTOR OF NURSING,PRESCRIPTION PRICING AUTHORITY,0015019839,296.20,,
FP10 GENERAL SURGERY,FP10 GENERAL SURGERY,07/10/2021,FP10S,GENERAL SURGERY CARE GROUP,PRESCRIPTION PRICING AUTHORITY,0015019839,"27,637.17",,
MEDICAL ONCOLOGY SNR MED STAFF,MEDICAL ONCOLOGY SNR MED STAFF,07/10/2021,FP10S,CANCER SERVICES CARE GROUP,PRESCRIPTION PRICING AUTHORITY,0015019839,"1,014.89",,
FP10 T&O,FP10 T&O,07/10/2021,FP10S,MUSCULOSKELETAL SERVICES CARE,PRESCRIPTION PRICING AUTHORITY,0015019839,415.36,,
CAPACITY CONSULTANTS,CAPACITY CONSULTANTS,07/10/2021,FP10S,EMERGENCY AND ACUTE CARE GROUP,PRESCRIPTION PRICING AUTHORITY,0015019839,1.02,,
FP10 PAIN CLINIC,FP10 PAIN CLINIC,07/10/2021,FP10S,THEATRE CRIT CARE AND ANAES,PRESCRIPTION PRICING AUTHORITY,0015019839,9.67,,
VACANT COMMUNITY CON,VACANT COMMUNITY CON,07/10/2021,FP10S,CHILDRENS AND FAMILY SERVICES,PRESCRIPTION PRICING AUTHORITY,0015019839,2.30,,
FP10  DERMATOLOGY,FP10  DERMATOLOGY,07/10/2021,FP10S,LONG TERM CONDITIONS CARE GRP,PRESCRIPTION PRICING AUTHORITY,0015019839,"6,722.36",,
FP10 ELDERLY CARE,FP10 ELDERLY CARE,07/10/2021,FP10S,ELDERLY CARE GROUP,PRESCRIPTION PRICING AUTHORITY,0015019839,197.07,,
FP10 ENT,FP10 ENT,07/10/2021,FP10S,HEAD AND NECK CARE GROUP,PRESCRIPTION PRICING AUTHORITY,0015019839,"2,569.52",,
FP10 BREAST SURGERY,FP10 BREAST SURGERY,07/10/2021,FP10S,GENERAL SURGERY CARE GROUP,PRESCRIPTION PRICING AUTHORITY,0015019839,514.28,,
FP10 COLORECTAL SURGERY,FP10 COLORECTAL SURGERY,07/10/2021,FP10S,GENERAL SURGERY CARE GROUP,PRESCRIPTION PRICING AUTHORITY,0015019839,"2,221.08",,
FP10 UROLOGY,FP10 UROLOGY,07/10/2021,FP10S,GENERAL SURGERY CARE GROUP,PRESCRIPTION PRICING AUTHORITY,0015019839,"1,633.54",,
CLINICAL HAEM FP10,CLINICAL HAEM FP10,07/10/2021,FP10S,CLINICAL SUPPORT SERVICES,PRESCRIPTION PRICING AUTHORITY,0015019839,247.48,,
FP10 CARDIOLOGY,FP10 CARDIOLOGY,07/10/2021,FP10S,CARDIOLOGY CARE GROUP,PRESCRIPTION PRICING AUTHORITY,0015019839,"3,511.27",,
FP10 DIABETES & ENDOCRINOLOGY,FP10 DIABETES & ENDOCRINOLOGY,07/10/2021,FP10S,LONG TERM CONDITIONS CARE GRP,PRESCRIPTION PRICING AUTHORITY,0015019839,"8,941.63",,
FP10  GENERAL MEDICINE,FP10  GENERAL MEDICINE,07/10/2021,FP10S,SPECIALTY MEDICINE CARE GROUP,PRESCRIPTION PRICING AUTHORITY,0015019839,"2,370.16",,
FP10 GASTROENTEROLOGY,FP10 GASTROENTEROLOGY,07/10/2021,FP10S,GASTRO CARE GROUP,PRESCRIPTION PRICING AUTHORITY,0015019839,769.36,,
FP10 RHEUMATOLOGY,FP10 RHEUMATOLOGY,07/10/2021,FP10S,MUSCULOSKELETAL SERVICES CARE,PRESCRIPTION PRICING AUTHORITY,0015019839,"2,970.15",,
FP10 RESPIRATORY CARE,FP10 RESPIRATORY CARE,07/10/2021,FP10S,ELDERLY CARE GROUP,PRESCRIPTION PRICING AUTHORITY,0015019839,117.68,,
FP10 NEUROLOGY,FP10 NEUROLOGY,07/10/2021,FP10S,ELDERLY CARE GROUP,PRESCRIPTION PRICING AUTHORITY,0015019839,248.56,,
OBS/GYNAE WARD DRUGS,OBS/GYNAE WARD DRUGS,07/10/2021,FP10S,WOMENS SERVICES,PRESCRIPTION PRICING AUTHORITY,0015019839,"8,884.28",,
FP10 OPHTHALMOLOGY,FP10 OPHTHALMOLOGY,07/10/2021,FP10S,HEAD AND NECK CARE GROUP,PRESCRIPTION PRICING AUTHORITY,0015019839,"1,579.69",,
FP10 ORAL SURGERY,FP10 ORAL SURGERY,07/10/2021,FP10S,HEAD AND NECK CARE GROUP,PRESCRIPTION PRICING AUTHORITY,0015019839,787.28,,
FP10 ELDERLY NEUROLOGICAL,FP10 ELDERLY NEUROLOGICAL,07/10/2021,FP10S,ELDERLY CARE GROUP,PRESCRIPTION PRICING AUTHORITY,0015019839,30.23,,
OTHER CCG,OTHER CCG,13/10/2021,REFERRED TESTS RECHARGES,BLOCK INCOME,UNIVERSITY HOSPITAL BIRMINGHAM NHS FT,0015019852,"54,214.26",,
CHIEF EXECUTIVE,CHIEF EXECUTIVE,04/10/2021,SERVICES FROM OTHER NHS BODIES,CHIEF EXECUTIVE,ROYAL WOLVERHAMPTON NHS TRUST,0015019856,"75,826.00",,
CHIEF EXECUTIVE,CHIEF EXECUTIVE,04/10/2021,SERVICES FROM OTHER NHS BODIES,CHIEF EXECUTIVE,ROYAL WOLVERHAMPTON NHS TRUST,0015019857,"227,477.00",,
CHIEF EXECUTIVE,CHIEF EXECUTIVE,04/10/2021,SERVICES FROM OTHER NHS BODIES,CHIEF EXECUTIVE,ROYAL WOLVERHAMPTON NHS TRUST,0015019858,"75,826.00",,
MORTUARY,MORTUARY,20/10/2021,SERVICES FROM OTHER NHS BODIES,CLINICAL SUPPORT SERVICES,ROYAL WOLVERHAMPTON PATHOLOGY,0015019879,"-106,968.76",,
PALLIATIVE CARE SENIOR MEDICS,PALLIATIVE CARE SENIOR MEDICS,20/10/2021,FP10S,DIRECTOR OF NURSING,PRESCRIPTION PRICING AUTHORITY,0015019889,"1,155.29",,
FP10 GENERAL SURGERY,FP10 GENERAL SURGERY,20/10/2021,FP10S,GENERAL SURGERY CARE GROUP,PRESCRIPTION PRICING AUTHORITY,0015019889,"20,444.02",,
MEDICAL ONCOLOGY SNR MED STAFF,MEDICAL ONCOLOGY SNR MED STAFF,20/10/2021,FP10S,CANCER SERVICES CARE GROUP,PRESCRIPTION PRICING AUTHORITY,0015019889,"1,074.94",,
FP10 T&O,FP10 T&O,20/10/2021,FP10S,MUSCULOSKELETAL SERVICES CARE,PRESCRIPTION PRICING AUTHORITY,0015019889,867.83,,
FP10 PAIN CLINIC,FP10 PAIN CLINIC,20/10/2021,FP10S,THEATRE CRIT CARE AND ANAES,PRESCRIPTION PRICING AUTHORITY,0015019889,106.96,,
FP10  DERMATOLOGY,FP10  DERMATOLOGY,20/10/2021,FP10S,LONG TERM CONDITIONS CARE GRP,PRESCRIPTION PRICING AUTHORITY,0015019889,"4,861.39",,
FP10 ELDERLY CARE,FP10 ELDERLY CARE,20/10/2021,FP10S,ELDERLY CARE GROUP,PRESCRIPTION PRICING AUTHORITY,0015019889,184.14,,
FP10 ENT,FP10 ENT,20/10/2021,FP10S,HEAD AND NECK CARE GROUP,PRESCRIPTION PRICING AUTHORITY,0015019889,"1,142.42",,
FP10 BREAST SURGERY,FP10 BREAST SURGERY,20/10/2021,FP10S,GENERAL SURGERY CARE GROUP,PRESCRIPTION PRICING AUTHORITY,0015019889,497.06,,
FP10 COLORECTAL SURGERY,FP10 COLORECTAL SURGERY,20/10/2021,FP10S,GENERAL SURGERY CARE GROUP,PRESCRIPTION PRICING AUTHORITY,0015019889,"1,111.64",,
FP10 UROLOGY,FP10 UROLOGY,20/10/2021,FP10S,GENERAL SURGERY CARE GROUP,PRESCRIPTION PRICING AUTHORITY,0015019889,"2,534.79",,
CLINICAL HAEM FP10,CLINICAL HAEM FP10,20/10/2021,FP10S,CLINICAL SUPPORT SERVICES,PRESCRIPTION PRICING AUTHORITY,0015019889,619.52,,
FP10 CARDIOLOGY,FP10 CARDIOLOGY,20/10/2021,FP10S,CARDIOLOGY CARE GROUP,PRESCRIPTION PRICING AUTHORITY,0015019889,"2,777.46",,
FP10 DIABETES & ENDOCRINOLOGY,FP10 DIABETES & ENDOCRINOLOGY,20/10/2021,FP10S,LONG TERM CONDITIONS CARE GRP,PRESCRIPTION PRICING AUTHORITY,0015019889,"4,769.92",,
FP10  GENERAL MEDICINE,FP10  GENERAL MEDICINE,20/10/2021,FP10S,SPECIALTY MEDICINE CARE GROUP,PRESCRIPTION PRICING AUTHORITY,0015019889,"1,900.03",,
FP10 GASTROENTEROLOGY,FP10 GASTROENTEROLOGY,20/10/2021,FP10S,GASTRO CARE GROUP,PRESCRIPTION PRICING AUTHORITY,0015019889,783.94,,
FP10 RHEUMATOLOGY,FP10 RHEUMATOLOGY,20/10/2021,FP10S,MUSCULOSKELETAL SERVICES CARE,PRESCRIPTION PRICING AUTHORITY,0015019889,"1,852.80",,
FP10 RESPIRATORY CARE,FP10 RESPIRATORY CARE,20/10/2021,FP10S,ELDERLY CARE GROUP,PRESCRIPTION PRICING AUTHORITY,0015019889,110.68,,
FP10 NEUROLOGY,FP10 NEUROLOGY,20/10/2021,FP10S,ELDERLY CARE GROUP,PRESCRIPTION PRICING AUTHORITY,0015019889,336.23,,
OBS/GYNAE WARD DRUGS,OBS/GYNAE WARD DRUGS,20/10/2021,FP10S,WOMENS SERVICES,PRESCRIPTION PRICING AUTHORITY,0015019889,"7,441.76",,
FP10 OPHTHALMOLOGY,FP10 OPHTHALMOLOGY,20/10/2021,FP10S,HEAD AND NECK CARE GROUP,PRESCRIPTION PRICING AUTHORITY,0015019889,"1,328.41",,
FP10 ORAL SURGERY,FP10 ORAL SURGERY,20/10/2021,FP10S,HEAD AND NECK CARE GROUP,PRESCRIPTION PRICING AUTHORITY,0015019889,"1,249.29",,
FP10 ELDERLY NEUROLOGICAL,FP10 ELDERLY NEUROLOGICAL,20/10/2021,FP10S,ELDERLY CARE GROUP,PRESCRIPTION PRICING AUTHORITY,0015019889,3.89,,
FINANCE DEPARTMENT,FINANCE DEPARTMENT,20/10/2021,OTHER EXPENSES,FINANCE DIRECTOR,ROYAL WOLVERHAMPTON NHS TRUST,0015019905,"-305,025.92",,
OTHER CCG,OTHER CCG,20/10/2021,REFERRED TESTS RECHARGES,BLOCK INCOME,UNIVERSITY HOSPITAL BIRMINGHAM NHS FT,0015019954,"54,214.26",,
PUBLIC HEALTH TRAINEES,PUBLIC HEALTH TRAINEES,13/10/2021,SPECIALISED REGISTRARS,HR & TRAINING,ST HELENS&KNOWSLEY TEACHING HOSPITALS,0015019973,"110,000.00",,
MORTUARY,MORTUARY,13/10/2021,SERVICES FROM OTHER NHS BODIES,CLINICAL SUPPORT SERVICES,ROYAL WOLVERHAMPTON PATHOLOGY,0015019977,"47,954.26",,
MORTUARY,MORTUARY,13/10/2021,SERVICES FROM OTHER NHS BODIES,CLINICAL SUPPORT SERVICES,ROYAL WOLVERHAMPTON PATHOLOGY,0015019980,"758,840.98",,
FINANCE DEPARTMENT,FINANCE DEPARTMENT,13/10/2021,OTHER EXPENSES,FINANCE DIRECTOR,UNIVERSITY HOSPITAL BIRMINGHAM NHS FT,0015019995,"-36,798.25",,
FINANCE DEPARTMENT,FINANCE DEPARTMENT,13/10/2021,OTHER EXPENSES,FINANCE DIRECTOR,UNIVERSITY HOSPITAL BIRMINGHAM NHS FT,0015019996,"-36,798.25",,
FINANCE DEPARTMENT,FINANCE DEPARTMENT,13/10/2021,OTHER EXPENSES,FINANCE DIRECTOR,UNIVERSITY HOSPITAL BIRMINGHAM NHS FT,0015019997,"-73,596.48",,
FINANCE DEPARTMENT,FINANCE DEPARTMENT,13/10/2021,OTHER EXPENSES,FINANCE DIRECTOR,UNIVERSITY HOSPITAL BIRMINGHAM NHS FT,0015019999,"-126,095.34",,
TRUST WIDE,TRUST WIDE,25/10/2021,DEBTORS - NON-NHS,TRUST WIDE,LISTER INHEALTH,0020073800,"13,386.20",,
IMAGING DEPARTMENT,IMAGING DEPARTMENT,25/10/2021,MRI SCANS,CLINICAL SUPPORT SERVICES,LISTER INHEALTH,0020073800,"66,931.00",,
MAINTENANCE - APPLICATIONS,MAINTENANCE - APPLICATIONS,25/10/2021,SOFTWARE MAINTENANCE,INFORMATION DIRECTOR,CIVICA UK LTD,0020074036,"28,625.14",,
MAINTENANCE - INFRASTRUCTURE,MAINTENANCE - INFRASTRUCTURE,27/10/2021,OTHER TELEPHONE RENTAL,INFORMATION DIRECTOR,VIRGIN MEDIA BUSINESS,0020074105,"44,699.14",,
SURGERY MANAGEMENT,SURGERY MANAGEMENT,04/10/2021,PURCHASE OF HCARE FROM NON-NHS,DIVISIONAL MANAGEMENT,"HEALTHCARE COMMUNICATIONS UK LTD,",0020074200,"29,894.41",,
ELECTRONICS DEPARTMENT,ELECTRONICS DEPARTMENT,04/10/2021,MED & SURG MTC,EBME EQUIPMENT,NHS SUPPLY CHAIN MAINTENANCE,0020074927,"30,277.30",,
TRUST WIDE,TRUST WIDE,04/10/2021,CREDITORS - TRADE,TRUST WIDE,NHS SUPPLY CHAIN CONSUMABLES,0020075028,"168,269.96",,
TRUST WIDE,TRUST WIDE,04/10/2021,CREDITORS - TRADE,TRUST WIDE,NHS SUPPLY CHAIN CONSUMABLES,0020075029,"164,665.76",,
TRUST WIDE,TRUST WIDE,06/10/2021,MINOR WORKS,MINOR WORKS,THE WALSALL HOSPITAL CO PLC,0020075034,"25,340.88",,
MAINTENANCE - APPLICATIONS,MAINTENANCE - APPLICATIONS,11/10/2021,COMPUTER HARDWARE AND SOFT MTC,INFORMATION DIRECTOR,TOTALMOBILE LTD,0020075047,"93,984.00",,
TRUST WIDE,TRUST WIDE,14/10/2021,CREDITORS - OTHER,TRUST WIDE,TUSKERDIRECT LTD,0020075066,"36,737.43",,
IMAGING DEPARTMENT,IMAGING DEPARTMENT,14/10/2021,X-RAY FILM & CHEMICALS - PURCH,CLINICAL SUPPORT SERVICES,GE MEDICAL SYSTEMS,0020075081,"96,000.00",,
IMAGING DEPARTMENT,IMAGING DEPARTMENT,14/10/2021,LOCUM CONSULTANTS,CLINICAL SUPPORT SERVICES,TXM TELECONSULT LTD,0020075096,"57,143.00",,
STAFF FLOW,STAFF FLOW,07/10/2021,AGENCY OTHER CAREER GRADES,FINANCE DIRECTOR,LIAISON PAYROLL,0020075112,"76,712.39",,
STAFF FLOW,STAFF FLOW,07/10/2021,AGENCY OTHER CAREER GRADES,FINANCE DIRECTOR,LIAISON PAYROLL,0020075113,"69,167.32",,
CAPITAL COMPUTER REPLACEMENT,CAPITAL COMPUTER REPLACEMENT,11/10/2021,PURCHASE OF TANGIBLE ASSET,CAPITAL,STONE COMPUTERS LTD,0020075153,"46,167.60",,
TRUST WIDE,TRUST WIDE,11/10/2021,CREDITORS - TRADE,TRUST WIDE,NHS SUPPLY CHAIN CONSUMABLES,0020075189,"179,050.62",,
THEATRE PRACTITIONER,THEATRE PRACTITIONER,18/10/2021,PURCHASE OF HCARE FROM NON-NHS,THEATRE CRIT CARE AND ANAES,THE PLACEMENT GROUP,0020075237,"113,426.02",,
LAUNDRY SERVICES,LAUNDRY SERVICES,18/10/2021,OTHER GENERAL SUPPLIES & SERV,FACILITIES,BERENDSEN UK LTD,0020075284,"68,037.12",,
HOSPITAL REDEVELOPMENT,HOSPITAL REDEVELOPMENT,20/10/2021,BUSINESS RATES,ESTATES MANAGEMENT,WALSALL MBC,0020075388,"238,080.00",,
TRUST WIDE,TRUST WIDE,20/10/2021,CREDITORS - TRADE,TRUST WIDE,NHS SUPPLY CHAIN CONSUMABLES,0020075402,"188,743.50",,
STAFF FLOW,STAFF FLOW,27/10/2021,AGENCY OTHER CAREER GRADES,FINANCE DIRECTOR,LIAISON PAYROLL,0020075506,"44,602.68",,
STAFF FLOW,STAFF FLOW,29/10/2021,AGENCY OTHER CAREER GRADES,FINANCE DIRECTOR,LIAISON PAYROLL,0020075574,"183,348.44",,
HEALTH RECORDS LIBRARY,HEALTH RECORDS LIBRARY,18/10/2021,DATA PROCESSING,DOS PERFORMANCE,STOR-A-FILE LIMITED,0050101807,"63,219.40",,
CAPITAL MEDICAL EQUIPMENT,CAPITAL MEDICAL EQUIPMENT,14/10/2021,PURCHASE OF TANGIBLE ASSET,CAPITAL,MINDRAY UK LTD,0050102386,"100,214.64",,
ENERGY SERV MANOR RESIDENCIES,ENERGY SERV MANOR RESIDENCIES,18/10/2021,WATER & SEWERAGE,ESTATES MANAGEMENT,WATER PLUS SELECT LIMITED,0050102394,"64,000.02",,
IMAGING DEPARTMENT,IMAGING DEPARTMENT,20/10/2021,LOCUM CONSULTANTS,CLINICAL SUPPORT SERVICES,TXM TELECONSULT LTD,0050102432,"41,311.00",,
TRUST WIDE,TRUST WIDE,18/10/2021,UNITARY PAYMENT,TRUST WIDE,HOSPITAL CO UP,0050102438,"2,182,438.63",,
CAPITAL COMPUTER REPLACEMENT,CAPITAL COMPUTER REPLACEMENT,27/10/2021,PURCHASE OF TANGIBLE ASSET,CAPITAL,PROBRAND LTD,0050102576,"30,132.00",,
MAINTENANCE - APPLICATIONS,MAINTENANCE - APPLICATIONS,04/10/2021,SOFTWARE MAINTENANCE,INFORMATION DIRECTOR,GE MEDICAL SYSTEMS,0060054083,"71,752.81",,
INCONTINENCE SUPPLIES,INCONTINENCE SUPPLIES,13/10/2021,CONTINENCE PRODUCTS,GENERAL SURGERY CARE GROUP,ABENA UK LTD,0060054155,"38,765.72",,
IM&T INFRASTRUCTURE,IM&T INFRASTRUCTURE,27/10/2021,TRAVEL EXPENSES,INFORMATION DIRECTOR,PERFECT WARD LTD,0060054282,"57,059.10",,
HEALTH RECORDS LIBRARY,HEALTH RECORDS LIBRARY,11/10/2021,PRINTING & STATIONERY,DOS PERFORMANCE,IRON MOUNTAIN (UK) LTD,0060054297,"25,138.40",,
HEALTH RECORDS LIBRARY,HEALTH RECORDS LIBRARY,11/10/2021,PRINTING & STATIONERY,DOS PERFORMANCE,IRON MOUNTAIN (UK) LTD,0060054298,"26,451.06",,
PROG CAP W WING ELECTRICAL SUP,PROG CAP W WING ELECTRICAL SUP,18/10/2021,PURCHASE OF TANGIBLE ASSET,CAPITAL,KSM CONSTRUCTION AND PRESERVATION LTD,0060054402,"44,837.41",,
CAP LIFECYC PLANNED,CAP LIFECYC PLANNED,20/10/2021,PURCHASE OF TANGIBLE ASSET,CAPITAL,WILLIAM GOUGH & SONS LTD,0060054577,"302,442.80",,
CAP WEST WING DEVELOPMENT,CAP WEST WING DEVELOPMENT,11/10/2021,PURCHASE OF TANGIBLE ASSET,CAPITAL,ZOLL MEDICAL UK LTD,0060054594,"37,771.20",,
CAP LIFECYC PLANNED,CAP LIFECYC PLANNED,11/10/2021,PURCHASE OF TANGIBLE ASSET,CAPITAL,WILLIAM GOUGH & SONS LTD,0060054636,"1,287,916.87",,
STAFF FLOW,STAFF FLOW,14/10/2021,AGENCY OTHER CAREER GRADES,FINANCE DIRECTOR,LIAISON PAYROLL,0060054693,"58,363.17",,
STAFF FLOW,STAFF FLOW,14/10/2021,AGENCY OTHER CAREER GRADES,FINANCE DIRECTOR,LIAISON PAYROLL,0060054694,"154,627.52",,
CAP A&E BUILD,CAP A&E BUILD,14/10/2021,PURCHASE OF TANGIBLE ASSET,CAPITAL,TILBURY DOUGLAS CONSTRUCTION LTD,0060054696,"902,303.09",,
IMAGING DEPARTMENT,IMAGING DEPARTMENT,14/10/2021,LOCUM CONSULTANTS,CLINICAL SUPPORT SERVICES,4 WAYS HEALTHCARE LTD,0060054701,"48,727.44",,
IMAGING DEPARTMENT,IMAGING DEPARTMENT,27/10/2021,MRI SCANS,CLINICAL SUPPORT SERVICES,LISTER INHEALTH,0060054704,"92,691.78",,
IMAGING DEPARTMENT,IMAGING DEPARTMENT,27/10/2021,MRI SCANS,CLINICAL SUPPORT SERVICES,LISTER INHEALTH,0060054705,"49,204.07",,
STAFF FLOW,STAFF FLOW,21/10/2021,AGENCY OTHER CAREER GRADES,FINANCE DIRECTOR,LIAISON PAYROLL,0060054862,"96,048.18",,
STAFF FLOW,STAFF FLOW,21/10/2021,AGENCY OTHER CAREER GRADES,FINANCE DIRECTOR,LIAISON PAYROLL,0060054887,"128,636.74",,
TRUST WIDE,TRUST WIDE,27/10/2021,CREDITORS - TRADE,TRUST WIDE,NHS SUPPLY CHAIN CONSUMABLES,0060055012,"182,594.24",,
TRUST WIDE,TRUST WIDE,13/10/2021,CREDITORS - TRADE,TRUST WIDE,CELGENE LTD,0090303720,"25,474.18",,
TRUST WIDE,TRUST WIDE,13/10/2021,CREDITORS - TRADE,TRUST WIDE,OCTAPHARMA LTD,0090303888,"52,785.00",,
,,,,,,TOTAL,"11,476,225.22",,
